[Event "*** Titled Tuesday Blitz"]
[Site "Chess.com"]
[Date "2018.10.02"]
[Round "2"]
[White "Buffy7"]
[Black "Keranke"]
[Result "0-1"]
[WhiteElo "2635"]
[BlackElo "2784"]
[TimeControl "180+2"]
[EndTime "13:23:22 PDT"]
[Termination "Keranke won by resignation"]

1. d4 {[%clk 0:03:01.9]} 1... g6 {[%clk 0:02:58.6]} 2. Nf3 {[%clk 0:03:02]} 2...
Bg7 {[%clk 0:03:00.2]} 3. e3 {[%clk 0:03:03.9]} 3... d6 {[%clk 0:03:01.7]} 4.
Be2 {[%clk 0:03:05.3]} 4... Nd7 {[%clk 0:03:03.2]} 5. O-O {[%clk 0:03:06.9]}
5... e5 {[%clk 0:03:04.9]} 6. dxe5 {[%clk 0:03:03.6]} 6... dxe5 {[%clk
0:03:05.5]} 7. Nc3 {[%clk 0:03:04.7]} 7... Ne7 {[%clk 0:03:03.2]} 8. e4 {[%clk
0:02:56.8]} 8... O-O {[%clk 0:03:02.3]} 9. Be3 {[%clk 0:02:56.2]} 9... c6 {[%clk
0:02:57.7]} 10. Qd6 {[%clk 0:02:56.1]} 10... Nb6 {[%clk 0:02:52]} 11. Qa3 {[%clk
0:02:42.3]} 11... Bg4 {[%clk 0:02:47.8]} 12. Rad1 {[%clk 0:02:41.5]} 12... Qc7
{[%clk 0:02:47.8]} 13. Bc5 {[%clk 0:02:42.9]} 13... Nbc8 {[%clk 0:02:28.6]} 14.
h3 {[%clk 0:02:37.9]} 14... Bxf3 {[%clk 0:02:29.2]} 15. Bxf3 {[%clk 0:02:39.8]}
15... Re8 {[%clk 0:02:28.7]} 16. Bg4 {[%clk 0:02:35.7]} 16... f5 {[%clk
0:01:48.5]} 17. Be2 {[%clk 0:02:18.6]} 17... b6 {[%clk 0:01:47.7]} 18. Bc4+
{[%clk 0:02:13.9]} 18... Kh8 {[%clk 0:01:45.6]} 19. Bd6 {[%clk 0:02:02.6]} 19...
Nxd6 {[%clk 0:01:45.9]} 20. Qxd6 {[%clk 0:02:04.5]} 20... Qxd6 {[%clk
0:01:46.1]} 21. Rxd6 {[%clk 0:02:06.4]} 21... b5 {[%clk 0:01:35.5]} 22. Be6
{[%clk 0:02:00.3]} 22... b4 {[%clk 0:01:36.1]} 23. Na4 {[%clk 0:01:59.3]} 23...
fxe4 {[%clk 0:01:36.2]} 24. Nc5 {[%clk 0:01:55.7]} 24... Nf5 {[%clk 0:01:37.2]}
25. Rxc6 {[%clk 0:01:41.9]} 25... Nd4 {[%clk 0:01:37.9]} 26. Ra6 {[%clk
0:01:42.5]} 26... Bf8 {[%clk 0:01:34.3]} 27. Bd5 {[%clk 0:01:08.6]} 27... Bxc5
{[%clk 0:01:14]} 28. Bxa8 {[%clk 0:01:09.3]} 28... Rxa8 {[%clk 0:01:15.9]} 29.
Re1 {[%clk 0:01:10.2]} 29... Bb6 {[%clk 0:01:07.9]} 30. Rxe4 {[%clk 0:01:08.6]}
30... Rc8 {[%clk 0:01:06.8]} 31. Rxe5 {[%clk 0:01:01.5]} 31... Rxc2 {[%clk
0:01:06.4]} 32. b3 {[%clk 0:00:57.3]} 32... Nf5 {[%clk 0:00:54.5]} 33. Rxb6
{[%clk 0:00:52.2]} 33... axb6 {[%clk 0:00:55.1]} 34. Rb5 {[%clk 0:00:54.1]}
34... Rc6 {[%clk 0:00:27]} 35. Rxb4 {[%clk 0:00:55.1]} 35... Kg7 {[%clk
0:00:28.6]} 36. a4 {[%clk 0:00:53.7]} 36... Kf6 {[%clk 0:00:29.6]} 37. g3 {[%clk
0:00:51.1]} 37... Ke6 {[%clk 0:00:29.4]} 38. Kg2 {[%clk 0:00:51.1]} 38... Kd6
{[%clk 0:00:30.7]} 39. h4 {[%clk 0:00:48.9]} 39... Ne7 {[%clk 0:00:25.5]} 40.
Rb5 {[%clk 0:00:31.5]} 40... Nd5 {[%clk 0:00:12]} 41. Kh3 {[%clk 0:00:28.9]}
41... Rc5 {[%clk 0:00:11.8]} 42. Rxc5 {[%clk 0:00:27.4]} 42... Kxc5 {[%clk
0:00:11.3]} 43. Kg4 {[%clk 0:00:28.2]} 43... Kb4 {[%clk 0:00:09.7]} 44. Kg5
{[%clk 0:00:30.1]} 44... Kxb3 {[%clk 0:00:11]} 45. Kh6 {[%clk 0:00:31.1]} 45...
Kxa4 {[%clk 0:00:12.5]} 46. Kxh7 {[%clk 0:00:33]} 46... Ne7 {[%clk 0:00:13.9]}
47. f4 {[%clk 0:00:30.3]} 47... b5 {[%clk 0:00:15.1]} 48. g4 {[%clk 0:00:28.3]}
48... b4 {[%clk 0:00:15.8]} 49. f5 {[%clk 0:00:29.8]} 49... gxf5 {[%clk
0:00:16.7]} 50. g5 {[%clk 0:00:31.4]} 50... b3 {[%clk 0:00:18]} 51. h5 {[%clk
0:00:33.1]} 51... b2 {[%clk 0:00:19.3]} 52. g6 {[%clk 0:00:35]} 52... b1=Q
{[%clk 0:00:20.5]} 53. g7 {[%clk 0:00:36.9]} 53... Qb8 {[%clk 0:00:21.3]} 54.
Kh6 {[%clk 0:00:37]} 54... Qg8 {[%clk 0:00:22.4]} 55. Kg5 {[%clk 0:00:38.9]}
55... Qxg7+ {[%clk 0:00:23.8]} 0-1

[Event "*** Titled Tuesday Blitz"]
[Site "Chess.com"]
[Date "2018.10.02"]
[Round "2"]
[White "MaestroASK"]
[Black "lucasmito"]
[Result "1-0"]
[WhiteElo "2440"]
[BlackElo "2404"]
[TimeControl "180+2"]
[EndTime "13:23:24 PDT"]
[Termination "MaestroASK won by resignation"]

1. d4 {[%clk 0:03:01.9]} 1... Nf6 {[%clk 0:02:58.7]} 2. Bg5 {[%clk 0:03:02.2]}
2... Ne4 {[%clk 0:02:59.7]} 3. Be3 {[%clk 0:03:01.5]} 3... d5 {[%clk 0:02:54.1]}
4. Nd2 {[%clk 0:03:00.3]} 4... Nxd2 {[%clk 0:02:47.6]} 5. Qxd2 {[%clk
0:03:00.6]} 5... g6 {[%clk 0:02:44.7]} 6. Bh6 {[%clk 0:02:54]} 6... Bf5 {[%clk
0:02:23.6]} 7. Bxf8 {[%clk 0:02:52.7]} 7... Kxf8 {[%clk 0:02:25.5]} 8. Nf3
{[%clk 0:02:47.9]} 8... Kg7 {[%clk 0:02:25.3]} 9. h3 {[%clk 0:02:40.6]} 9... Nc6
{[%clk 0:02:23.3]} 10. c3 {[%clk 0:02:40.6]} 10... Qd6 {[%clk 0:02:20.7]} 11.
Nh4 {[%clk 0:02:34.5]} 11... Bd7 {[%clk 0:02:13.1]} 12. f4 {[%clk 0:02:26]}
12... g5 {[%clk 0:01:52.2]} 13. Nf3 {[%clk 0:02:25.4]} 13... Qxf4 {[%clk
0:01:47.7]} 14. Qxf4 {[%clk 0:02:23.9]} 14... gxf4 {[%clk 0:01:48.4]} 15. Kf2
{[%clk 0:02:15.4]} 15... f6 {[%clk 0:01:45.9]} 16. Rd1 {[%clk 0:02:14.5]} 16...
Rad8 {[%clk 0:01:47.1]} 17. Ne1 {[%clk 0:02:09]} 17... Bf5 {[%clk 0:01:47.4]}
18. Nd3 {[%clk 0:02:05.3]} 18... e5 {[%clk 0:01:42.1]} 19. Nc5 {[%clk
0:01:59.2]} 19... e4 {[%clk 0:01:12.7]} 20. Rg1 {[%clk 0:01:22.4]} 20... b6
{[%clk 0:01:02.6]} 21. Na6 {[%clk 0:01:21.4]} 21... Rd7 {[%clk 0:00:50.2]} 22.
g3 {[%clk 0:01:19.9]} 22... fxg3+ {[%clk 0:00:50.6]} 23. Rxg3+ {[%clk
0:01:20.1]} 23... Bg6 {[%clk 0:00:52.2]} 24. e3 {[%clk 0:01:20.4]} 24... Ne7
{[%clk 0:00:51.1]} 25. Be2 {[%clk 0:01:14.1]} 25... c6 {[%clk 0:00:51.1]} 26.
Rdg1 {[%clk 0:01:10.7]} 26... Nf5 {[%clk 0:00:51.4]} 27. R3g2 {[%clk 0:01:08.5]}
27... Kh6 {[%clk 0:00:51.8]} 28. Nb4 {[%clk 0:01:07.9]} 28... Rc7 {[%clk
0:00:44.2]} 29. Na6 {[%clk 0:01:02.9]} 29... Rd7 {[%clk 0:00:44.9]} 30. Bg4
{[%clk 0:01:03.1]} 30... Rd6 {[%clk 0:00:28.2]} 31. Bxf5 {[%clk 0:01:02.4]}
31... Bxf5 {[%clk 0:00:29.2]} 32. Nb4 {[%clk 0:00:59]} 32... a5 {[%clk
0:00:27.4]} 33. Nc2 {[%clk 0:00:59]} 33... Bg6 {[%clk 0:00:28.8]} 34. Rg4 {[%clk
0:00:56]} 34... Rf8 {[%clk 0:00:25.7]} 35. Ne1 {[%clk 0:00:53.2]} 35... f5
{[%clk 0:00:25.2]} 36. Rh4+ {[%clk 0:00:52.8]} 36... Kg7 {[%clk 0:00:26.4]} 37.
Ng2 {[%clk 0:00:53.4]} 37... c5 {[%clk 0:00:19.1]} 38. Nf4 {[%clk 0:00:53]}
38... c4 {[%clk 0:00:19.8]} 39. Rh5 {[%clk 0:00:49.9]} 39... b5 {[%clk
0:00:16.1]} 40. Rhg5 {[%clk 0:00:49.4]} 40... b4 {[%clk 0:00:15.7]} 41. h4
{[%clk 0:00:49]} 41... Kh6 {[%clk 0:00:13.2]} 42. h5 {[%clk 0:00:41.4]} 42...
Be8 {[%clk 0:00:14.8]} 43. a3 {[%clk 0:00:27.7]} 43... bxa3 {[%clk 0:00:14.6]}
44. bxa3 {[%clk 0:00:27.8]} 44... Bf7 {[%clk 0:00:11.4]} 45. Rxf5 {[%clk
0:00:23.9]} 45... Rb6 {[%clk 0:00:13]} 46. Rgg5 {[%clk 0:00:21.2]} 46... Rb2+
{[%clk 0:00:13.9]} 47. Kg3 {[%clk 0:00:22.2]} 47... Rb3 {[%clk 0:00:11.8]} 48.
Kh4 {[%clk 0:00:22.2]} 48... Rxc3 {[%clk 0:00:12.8]} 49. Rf6+ {[%clk 0:00:23.1]}
1-0

[Event "*** Titled Tuesday Blitz"]
[Site "Chess.com"]
[Date "2018.10.02"]
[Round "2"]
[White "Turkey-Champion"]
[Black "MikeSailer"]
[Result "1-0"]
[WhiteElo "2272"]
[BlackElo "2055"]
[TimeControl "180+2"]
[EndTime "13:23:33 PDT"]
[Termination "Turkey-Champion won on time"]

1. e4 {[%clk 0:03:01.9]} 1... d5 {[%clk 0:02:57.2]} 2. exd5 {[%clk 0:03:01.7]}
2... Qxd5 {[%clk 0:02:56.4]} 3. Nc3 {[%clk 0:03:02.6]} 3... Qd8 {[%clk
0:02:56.2]} 4. d4 {[%clk 0:03:03.1]} 4... Nf6 {[%clk 0:02:56.5]} 5. Bc4 {[%clk
0:03:04.4]} 5... a6 {[%clk 0:02:56.8]} 6. Nf3 {[%clk 0:03:05.7]} 6... e6 {[%clk
0:02:56.6]} 7. Be3 {[%clk 0:03:03.3]} 7... Be7 {[%clk 0:02:55.9]} 8. Qe2 {[%clk
0:03:02.6]} 8... b5 {[%clk 0:02:54.1]} 9. Bd3 {[%clk 0:03:03]} 9... Bb7 {[%clk
0:02:54.9]} 10. h4 {[%clk 0:03:02.3]} 10... Nbd7 {[%clk 0:02:46.4]} 11. h5
{[%clk 0:02:57.5]} 11... h6 {[%clk 0:02:47.6]} 12. O-O-O {[%clk 0:02:40.4]}
12... Nb6 {[%clk 0:02:48.1]} 13. Ne5 {[%clk 0:02:35.7]} 13... Nbd5 {[%clk
0:02:26.7]} 14. Nxd5 {[%clk 0:02:21.7]} 14... Nxd5 {[%clk 0:02:25.8]} 15. Qg4
{[%clk 0:02:09]} 15... Bg5 {[%clk 0:02:16]} 16. Rhe1 {[%clk 0:01:41.2]} 16...
Bxe3+ {[%clk 0:02:08.8]} 17. fxe3 {[%clk 0:01:43.1]} 17... Qg5 {[%clk
0:02:06.8]} 18. Qxg5 {[%clk 0:01:28.2]} 18... hxg5 {[%clk 0:02:01.9]} 19. g4
{[%clk 0:01:30.1]} 19... Nb4 {[%clk 0:01:21]} 20. a3 {[%clk 0:01:12.4]} 20...
Nxd3+ {[%clk 0:01:21.1]} 21. Rxd3 {[%clk 0:01:14.3]} 21... Be4 {[%clk
0:01:16.3]} 22. Rc3 {[%clk 0:01:14.2]} 22... f6 {[%clk 0:01:07.4]} 23. Nd3
{[%clk 0:00:56.4]} 23... Bxd3 {[%clk 0:01:06.9]} 24. Rxd3 {[%clk 0:00:57.7]}
24... O-O-O {[%clk 0:01:05]} 25. Kd2 {[%clk 0:00:53.9]} 25... Kb7 {[%clk
0:01:00.1]} 26. Kc3 {[%clk 0:00:54.1]} 26... Rd6 {[%clk 0:00:47.4]} 27. b3
{[%clk 0:00:50.1]} 27... a5 {[%clk 0:00:45.2]} 28. a4 {[%clk 0:00:48.3]} 28...
bxa4 {[%clk 0:00:43]} 29. bxa4 {[%clk 0:00:48.8]} 29... Rb6 {[%clk 0:00:44.3]}
30. e4 {[%clk 0:00:46.9]} 30... Rb4 {[%clk 0:00:43.5]} 31. e5 {[%clk 0:00:48.3]}
31... f5 {[%clk 0:00:29.9]} 32. gxf5 {[%clk 0:00:47.7]} 32... exf5 {[%clk
0:00:31]} 33. e6 {[%clk 0:00:49.5]} 33... Kc6 {[%clk 0:00:27.8]} 34. Re5 {[%clk
0:00:48.1]} 34... Kd6 {[%clk 0:00:18.4]} 35. Rde3 {[%clk 0:00:46.5]} 35... Ke7
{[%clk 0:00:13.1]} 36. Rxf5 {[%clk 0:00:46.4]} 36... Rxa4 {[%clk 0:00:13.6]} 37.
Rf7+ {[%clk 0:00:46.9]} 37... Ke8 {[%clk 0:00:12.5]} 38. Rxc7 {[%clk 0:00:46.6]}
38... Rxh5 {[%clk 0:00:12.5]} 39. e7 {[%clk 0:00:46.4]} 39... Ra3+ {[%clk
0:00:13.7]} 40. Kd2 {[%clk 0:00:47.2]} 40... Rxe3 {[%clk 0:00:14.5]} 41. Kxe3
{[%clk 0:00:49.1]} 41... Rh1 {[%clk 0:00:09.4]} 42. Kd2 {[%clk 0:00:43.9]} 42...
Rh2+ {[%clk 0:00:09.5]} 43. Kd3 {[%clk 0:00:42.5]} 43... Rh3+ {[%clk 0:00:07.8]}
44. Kc4 {[%clk 0:00:43.7]} 44... Rh2 {[%clk 0:00:08.2]} 45. Kd5 {[%clk
0:00:44.2]} 45... a4 {[%clk 0:00:02.3]} 46. Kd6 {[%clk 0:00:45]} 46... Rh6+
{[%clk 0:00:03.2]} 47. Ke5 {[%clk 0:00:44.4]} 47... Ra6 {[%clk 0:00:03.7]} 48.
d5 {[%clk 0:00:44]} 48... a3 {[%clk 0:00:05.3]} 49. d6 {[%clk 0:00:44.7]} 49...
a2 {[%clk 0:00:02.7]} 50. Rc8+ {[%clk 0:00:44.4]} 1-0

[Event "*** Titled Tuesday Blitz"]
[Site "Chess.com"]
[Date "2018.10.02"]
[Round "2"]
[White "GrigorGrigorov"]
[Black "kasparik_garik"]
[Result "1-0"]
[WhiteElo "2720"]
[BlackElo "2555"]
[TimeControl "180+2"]
[EndTime "13:23:44 PDT"]
[Termination "GrigorGrigorov won by resignation"]

1. e4 {[%clk 0:03:01.9]} 1... g6 {[%clk 0:02:58.7]} 2. d4 {[%clk 0:03:02.3]}
2... Bg7 {[%clk 0:02:59]} 3. Nf3 {[%clk 0:03:03.3]} 3... d6 {[%clk 0:02:59.5]}
4. Be2 {[%clk 0:03:04]} 4... Nf6 {[%clk 0:02:59.9]} 5. Nc3 {[%clk 0:03:04.6]}
5... O-O {[%clk 0:03:00.5]} 6. O-O {[%clk 0:03:05.2]} 6... Bg4 {[%clk
0:03:01.1]} 7. h3 {[%clk 0:03:03.5]} 7... Bxf3 {[%clk 0:03:01.7]} 8. Bxf3 {[%clk
0:03:04.6]} 8... Nc6 {[%clk 0:03:02.7]} 9. Ne2 {[%clk 0:03:05.1]} 9... e5 {[%clk
0:02:54]} 10. c3 {[%clk 0:03:05.5]} 10... exd4 {[%clk 0:02:38.9]} 11. cxd4
{[%clk 0:03:06.1]} 11... Re8 {[%clk 0:02:39.6]} 12. Nc3 {[%clk 0:02:59.2]} 12...
Nd7 {[%clk 0:02:25.8]} 13. Be3 {[%clk 0:02:55.6]} 13... Nb6 {[%clk 0:02:26.4]}
14. b3 {[%clk 0:02:53.2]} 14... a5 {[%clk 0:02:20.6]} 15. Rc1 {[%clk 0:02:38.6]}
15... a4 {[%clk 0:02:16.5]} 16. Nxa4 {[%clk 0:02:27.1]} 16... Nxa4 {[%clk
0:02:17]} 17. bxa4 {[%clk 0:02:29]} 17... Qh4 {[%clk 0:01:39.9]} 18. d5 {[%clk
0:02:22.7]} 18... Ne5 {[%clk 0:01:39.6]} 19. Rxc7 {[%clk 0:02:22.3]} 19... Nxf3+
{[%clk 0:01:35.1]} 20. Qxf3 {[%clk 0:02:23]} 20... Re7 {[%clk 0:01:28.5]} 21.
Rfc1 {[%clk 0:02:13.2]} 21... h5 {[%clk 0:01:16.4]} 22. g3 {[%clk 0:01:55.9]}
22... Qxe4 {[%clk 0:01:15.1]} 23. Qxe4 {[%clk 0:01:55.4]} 23... Rxe4 {[%clk
0:01:15.8]} 24. Rxb7 {[%clk 0:01:54.7]} 24... Rexa4 {[%clk 0:01:14.9]} 25. Rcc7
{[%clk 0:01:54.8]} 25... Rf8 {[%clk 0:01:13.8]} 26. Ra7 {[%clk 0:01:54.5]} 26...
Ra8 {[%clk 0:01:11]} 27. Rxa8+ {[%clk 0:01:46]} 27... Rxa8 {[%clk 0:01:11.7]}
28. Ra7 {[%clk 0:01:41.6]} 28... Rb8 {[%clk 0:01:09.2]} 29. a4 {[%clk 0:01:42]}
29... Rb1+ {[%clk 0:01:06.8]} 30. Kg2 {[%clk 0:01:42.4]} 30... Rd1 {[%clk
0:01:07.6]} 31. a5 {[%clk 0:01:40.4]} 31... Bd4 {[%clk 0:00:40.3]} 32. Ra8+
{[%clk 0:01:34.4]} 32... Kg7 {[%clk 0:00:39.7]} 33. Bxd4+ {[%clk 0:01:24.1]}
33... Rxd4 {[%clk 0:00:40.1]} 34. a6 {[%clk 0:01:23.7]} 34... Rxd5 {[%clk
0:00:41]} 35. Rd8 {[%clk 0:01:22.1]} 35... Ra5 {[%clk 0:00:38.1]} 36. Rxd6
{[%clk 0:01:22.9]} 36... g5 {[%clk 0:00:33.3]} 37. Kf3 {[%clk 0:01:19.1]} 37...
f6 {[%clk 0:00:33.6]} 38. Rd7+ {[%clk 0:01:13.5]} 38... Kg6 {[%clk 0:00:34.5]}
39. a7 {[%clk 0:01:14.9]} 39... Ra3+ {[%clk 0:00:35.6]} 40. Ke4 {[%clk
0:01:14.5]} 40... Ra4+ {[%clk 0:00:35.6]} 41. Kd5 {[%clk 0:01:14.9]} 41... Kf5
{[%clk 0:00:35.9]} 42. Kc6 {[%clk 0:01:15.9]} 42... Ke4 {[%clk 0:00:36.8]} 43.
Kb7 {[%clk 0:01:13.5]} 43... Kf3 {[%clk 0:00:35.7]} 44. a8=Q {[%clk 0:00:58.7]}
44... Rxa8 {[%clk 0:00:35.3]} 45. Kxa8 {[%clk 0:01:00.3]} 45... Kxf2 {[%clk
0:00:36.2]} 46. g4 {[%clk 0:01:01.4]} 46... hxg4 {[%clk 0:00:24.5]} 47. hxg4
{[%clk 0:01:02.4]} 47... Ke3 {[%clk 0:00:24.5]} 48. Kb7 {[%clk 0:00:45.9]} 48...
Ke4 {[%clk 0:00:20.7]} 49. Kc6 {[%clk 0:00:43.2]} 49... f5 {[%clk 0:00:21.1]}
50. gxf5 {[%clk 0:00:43.9]} 50... Kxf5 {[%clk 0:00:21.8]} 51. Kd5 {[%clk
0:00:45.4]} 51... Kf4 {[%clk 0:00:22.7]} 52. Kd4 {[%clk 0:00:40.4]} 52... g4
{[%clk 0:00:19.6]} 53. Rf7+ {[%clk 0:00:40.6]} 53... Kg3 {[%clk 0:00:21.5]} 54.
Ke3 {[%clk 0:00:41.8]} 54... Kg2 {[%clk 0:00:21.6]} 55. Kf4 {[%clk 0:00:40.9]}
55... g3 {[%clk 0:00:21]} 56. Rg7 {[%clk 0:00:42.1]} 1-0

[Event "*** Titled Tuesday Blitz"]
[Site "Chess.com"]
[Date "2018.10.02"]
[Round "2"]
[White "chenrip"]
[Black "ddtru"]
[Result "1-0"]
[WhiteElo "2412"]
[BlackElo "2258"]
[TimeControl "180+2"]
[EndTime "13:23:44 PDT"]
[Termination "chenrip won by checkmate"]

1. e4 {[%clk 0:03:00.6]} 1... c5 {[%clk 0:03:00.3]} 2. Nf3 {[%clk 0:03:01.5]}
2... e6 {[%clk 0:03:01.2]} 3. g3 {[%clk 0:03:01.6]} 3... Nc6 {[%clk 0:02:59.6]}
4. Bg2 {[%clk 0:03:02.2]} 4... g6 {[%clk 0:02:56.1]} 5. O-O {[%clk 0:03:02.8]}
5... Bg7 {[%clk 0:02:57]} 6. Nc3 {[%clk 0:03:02.7]} 6... Nge7 {[%clk 0:02:57.5]}
7. Re1 {[%clk 0:02:57.3]} 7... d6 {[%clk 0:02:57.9]} 8. d3 {[%clk 0:02:57.4]}
8... O-O {[%clk 0:02:55.9]} 9. Be3 {[%clk 0:02:58.3]} 9... Nd4 {[%clk
0:02:48.9]} 10. Rb1 {[%clk 0:02:47]} 10... Bd7 {[%clk 0:02:11.7]} 11. Ne2 {[%clk
0:02:46.6]} 11... Nec6 {[%clk 0:01:55.5]} 12. c3 {[%clk 0:02:45.8]} 12... Nxe2+
{[%clk 0:01:55.9]} 13. Qxe2 {[%clk 0:02:46]} 13... e5 {[%clk 0:01:52.6]} 14. Qd2
{[%clk 0:02:42.2]} 14... f5 {[%clk 0:01:45.1]} 15. Bh6 {[%clk 0:02:42.9]} 15...
Qf6 {[%clk 0:01:15.6]} 16. Bxg7 {[%clk 0:02:43.2]} 16... Qxg7 {[%clk 0:01:15.2]}
17. Rbd1 {[%clk 0:02:23.8]} 17... Rae8 {[%clk 0:01:11.7]} 18. a3 {[%clk
0:01:43.4]} 18... Kh8 {[%clk 0:01:10]} 19. b4 {[%clk 0:01:43.7]} 19... b6 {[%clk
0:01:10.4]} 20. b5 {[%clk 0:01:43.7]} 20... Nd8 {[%clk 0:01:05.4]} 21. a4 {[%clk
0:01:43.9]} 21... Ne6 {[%clk 0:00:58.3]} 22. d4 {[%clk 0:01:35]} 22... fxe4
{[%clk 0:00:41]} 23. Rxe4 {[%clk 0:01:34.2]} 23... exd4 {[%clk 0:00:40.9]} 24.
cxd4 {[%clk 0:01:34.9]} 24... d5 {[%clk 0:00:33.9]} 25. Re5 {[%clk 0:01:29.3]}
25... Nxd4 {[%clk 0:00:33.3]} 26. Rxe8 {[%clk 0:01:22.2]} 26... Rxe8 {[%clk
0:00:34.3]} 27. Nxd4 {[%clk 0:01:22.2]} 27... cxd4 {[%clk 0:00:21.9]} 28. Bxd5
{[%clk 0:01:22.1]} 28... Bg4 {[%clk 0:00:20.7]} 29. f3 {[%clk 0:01:22.1]} 29...
Qe5 {[%clk 0:00:18.8]} 30. Qxd4 {[%clk 0:01:22.2]} 30... Qxd4+ {[%clk
0:00:18.7]} 31. Rxd4 {[%clk 0:01:22.9]} 31... Bh3 {[%clk 0:00:19.8]} 32. Kf2
{[%clk 0:01:24.2]} 32... Rd8 {[%clk 0:00:18.7]} 33. Ke3 {[%clk 0:01:23.7]} 33...
Kg7 {[%clk 0:00:19.6]} 34. Bc6 {[%clk 0:01:23.3]} 34... Rf8 {[%clk 0:00:18.7]}
35. a5 {[%clk 0:01:09.6]} 35... bxa5 {[%clk 0:00:17.3]} 36. Ra4 {[%clk
0:01:11.1]} 36... Rf7 {[%clk 0:00:18.3]} 37. Rxa5 {[%clk 0:01:12]} 37... Re7+
{[%clk 0:00:18.3]} 38. Kd4 {[%clk 0:01:11.3]} 38... Bf1 {[%clk 0:00:19]} 39. Kc5
{[%clk 0:01:11.9]} 39... Be2 {[%clk 0:00:19.2]} 40. Bd5 {[%clk 0:01:10.7]} 40...
Kf8 {[%clk 0:00:19]} 41. Kd6 {[%clk 0:01:11.1]} 41... Bd1 {[%clk 0:00:16.2]} 42.
f4 {[%clk 0:01:11.4]} 42... Be2 {[%clk 0:00:16.7]} 43. Bc6 {[%clk 0:01:11.9]}
43... Bd3 {[%clk 0:00:16]} 44. Bd7 {[%clk 0:01:13]} 44... Bf5 {[%clk 0:00:10.7]}
45. Rxa7 {[%clk 0:01:06.3]} 45... Bd3 {[%clk 0:00:08.6]} 46. Ra3 {[%clk
0:00:58.3]} 46... Bf1 {[%clk 0:00:06.2]} 47. b6 {[%clk 0:00:58.5]} 47... Bg2
{[%clk 0:00:07.2]} 48. Rc3 {[%clk 0:00:52.6]} 48... Re1 {[%clk 0:00:06]} 49.
Rc8+ {[%clk 0:00:52.2]} 49... Kg7 {[%clk 0:00:07.1]} 50. Rc7 {[%clk 0:00:53.6]}
50... Kf6 {[%clk 0:00:06.7]} 51. Bc6 {[%clk 0:00:51.2]} 51... Rd1+ {[%clk
0:00:07.1]} 52. Kc5 {[%clk 0:00:52.7]} 52... Rc1+ {[%clk 0:00:07.9]} 53. Kb5
{[%clk 0:00:54]} 53... Bf1+ {[%clk 0:00:05.3]} 54. Kb4 {[%clk 0:00:53.8]} 54...
Rb1+ {[%clk 0:00:06.3]} 55. Kc5 {[%clk 0:00:55.3]} 55... Rc1+ {[%clk 0:00:07.5]}
56. Kd6 {[%clk 0:00:53.9]} 56... Rd1+ {[%clk 0:00:08.5]} 57. Bd5 {[%clk
0:00:54.7]} 57... Bg2 {[%clk 0:00:03.7]} 58. Rf7# {[%clk 0:00:54]} 1-0

[Event "*** Titled Tuesday Blitz"]
[Site "Chess.com"]
[Date "2018.10.02"]
[Round "2"]
[White "SantoBlue"]
[Black "Tarlev_Konstantin"]
[Result "1-0"]
[WhiteElo "2821"]
[BlackElo "2605"]
[TimeControl "180+2"]
[EndTime "13:23:57 PDT"]
[Termination "SantoBlue won on time"]

1. e4 {[%clk 0:03:01.9]} 1... c5 {[%clk 0:03:00.5]} 2. Nf3 {[%clk 0:03:02.4]}
2... e6 {[%clk 0:03:01.9]} 3. d4 {[%clk 0:03:03.6]} 3... cxd4 {[%clk 0:03:03]}
4. Nxd4 {[%clk 0:03:05.5]} 4... Nc6 {[%clk 0:03:03.9]} 5. Nc3 {[%clk 0:03:06.4]}
5... Qc7 {[%clk 0:03:05.4]} 6. Be3 {[%clk 0:03:05.1]} 6... Nf6 {[%clk
0:03:04.3]} 7. Bd3 {[%clk 0:03:02.5]} 7... a6 {[%clk 0:03:00.2]} 8. O-O {[%clk
0:02:54.8]} 8... Be7 {[%clk 0:02:57.5]} 9. Kh1 {[%clk 0:02:38.1]} 9... O-O
{[%clk 0:02:55]} 10. f4 {[%clk 0:02:38.3]} 10... d6 {[%clk 0:02:52.5]} 11. Qe2
{[%clk 0:02:18.6]} 11... Bd7 {[%clk 0:02:45.7]} 12. Rae1 {[%clk 0:02:09.6]}
12... b5 {[%clk 0:02:34.6]} 13. a3 {[%clk 0:02:10.5]} 13... Rab8 {[%clk
0:02:25.6]} 14. Nxc6 {[%clk 0:02:04.3]} 14... Bxc6 {[%clk 0:02:26.4]} 15. Bd2
{[%clk 0:02:05]} 15... Qb7 {[%clk 0:02:13]} 16. e5 {[%clk 0:02:04.3]} 16... Nd7
{[%clk 0:01:58.4]} 17. exd6 {[%clk 0:01:42.4]} 17... Bxd6 {[%clk 0:01:57.9]} 18.
Ne4 {[%clk 0:01:42.8]} 18... Be7 {[%clk 0:01:58]} 19. Bc3 {[%clk 0:01:20.5]}
19... f5 {[%clk 0:01:43.6]} 20. Ng5 {[%clk 0:01:03.8]} 20... Bxg5 {[%clk
0:01:41.6]} 21. fxg5 {[%clk 0:01:04.3]} 21... Nc5 {[%clk 0:01:42.4]} 22. Rf2
{[%clk 0:00:51.9]} 22... Ne4 {[%clk 0:01:35.7]} 23. Bxe4 {[%clk 0:00:52.6]}
23... Bxe4 {[%clk 0:01:36.8]} 24. Qe3 {[%clk 0:00:49.9]} 24... Rbd8 {[%clk
0:01:31.9]} 25. h3 {[%clk 0:00:49.1]} 25... Rd7 {[%clk 0:01:28.8]} 26. Be5
{[%clk 0:00:36.8]} 26... Rfd8 {[%clk 0:01:25.3]} 27. Qf4 {[%clk 0:00:32.3]}
27... a5 {[%clk 0:01:02.8]} 28. Kh2 {[%clk 0:00:32.4]} 28... b4 {[%clk
0:01:03.9]} 29. axb4 {[%clk 0:00:32.7]} 29... axb4 {[%clk 0:01:05.4]} 30. Re3
{[%clk 0:00:32.1]} 30... Qc6 {[%clk 0:00:53.3]} 31. c3 {[%clk 0:00:21.6]} 31...
b3 {[%clk 0:00:53.9]} 32. Re1 {[%clk 0:00:18.6]} 32... Ra8 {[%clk 0:00:37.2]}
33. Re3 {[%clk 0:00:15.9]} 33... Rad8 {[%clk 0:00:37.3]} 34. g6 {[%clk 0:00:16]}
34... hxg6 {[%clk 0:00:37.3]} 35. Rg3 {[%clk 0:00:16.6]} 35... Rf7 {[%clk
0:00:18.3]} 36. Rxg6 {[%clk 0:00:15.4]} 36... Rdd7 {[%clk 0:00:19.7]} 37. Rf1
{[%clk 0:00:13]} 37... Ra7 {[%clk 0:00:16.7]} 38. Rd1 {[%clk 0:00:12.6]} 38...
Rad7 {[%clk 0:00:17]} 39. Ra1 {[%clk 0:00:12.2]} 39... Ra7 {[%clk 0:00:09.9]}
40. Qh6 {[%clk 0:00:09.2]} 40... Qd7 {[%clk 0:00:09.4]} 41. Rxa7 {[%clk
0:00:06.5]} 41... Qxa7 {[%clk 0:00:10.1]} 42. Qg5 {[%clk 0:00:08]} 42... Qd7
{[%clk 0:00:11.1]} 43. h4 {[%clk 0:00:06.5]} 43... f4 {[%clk 0:00:12.4]} 44. h5
{[%clk 0:00:06.9]} 44... Bxg6 {[%clk 0:00:13.3]} 45. hxg6 {[%clk 0:00:08.4]}
45... Rf5 {[%clk 0:00:10]} 46. Qh4 {[%clk 0:00:09.8]} 46... Kf8 {[%clk
0:00:10.8]} 47. Qh8+ {[%clk 0:00:09.6]} 47... Ke7 {[%clk 0:00:11.9]} 48. Qxg7+
{[%clk 0:00:10]} 48... Kd8 {[%clk 0:00:13.3]} 49. Bf6+ {[%clk 0:00:09.2]} 49...
Kc8 {[%clk 0:00:05.9]} 50. Qxd7+ {[%clk 0:00:10.2]} 50... Kxd7 {[%clk 0:00:07]}
51. g7 {[%clk 0:00:12.1]} 51... Rxf6 {[%clk 0:00:08.1]} 52. g8=Q {[%clk
0:00:13.6]} 1-0